[Event "Titled Tuesday Blitz November 08 Early 2022"]
[White "Turzo, Attila"]
[Black "Khaliun, Batnasan"]
[WhiteFideId "704954"]
[BlackFideId "4906276"]
[WhiteElo "2522"]
[BlackElo "1752"]
[Result "1-0"]
[Round "05"]
[TimeControl "180+1"]
[Date "2022.11.09"]
[WhiteClock "0:01:18"]
[BlackClock "0:00:43"]

1. d4 {[%clk 0:03:00]}  d5 {[%clk 0:02:59]} 2. c4 {[%clk 0:03:00]}  c6 {[%clk 0:02:59]} 3. Nc3 {[%clk 0:02:59]}  Nf6 {[%clk 0:02:58]} 4. e3 {[%clk 0:02:59]}  e6 {[%clk 0:02:58]} 5. Nf3 {[%clk 0:02:59]}  Nbd7 {[%clk 0:02:54]} 6. Be2 {[%clk 0:03:00]}  dxc4 {[%clk 0:02:53]} 7. a4 {[%clk 0:03:00]}  Nb6 {[%clk 0:02:28]} 8. a5 {[%clk 0:02:50]}  Nbd5 {[%clk 0:02:27]} 9. O-O {[%clk 0:02:34]}  Bb4 {[%clk 0:02:24]} 10. Bxc4 {[%clk 0:02:31]}  Bxa5 {[%clk 0:02:22]} 11. Bd2 {[%clk 0:02:23]}  Bc7 {[%clk 0:02:18]} 12. Re1 {[%clk 0:02:20]}  O-O {[%clk 0:02:14]} 13. e4 {[%clk 0:02:19]}  Nb6 {[%clk 0:02:08]} 14. Bb3 {[%clk 0:02:12]}  Nbd7 {[%clk 0:01:39]} 15. Bg5 {[%clk 0:02:06]}  Qe8 {[%clk 0:01:34]} 16. e5 {[%clk 0:02:05]}  Nd5 {[%clk 0:01:30]} 17. Bc2 {[%clk 0:01:52]}  Bd8 {[%clk 0:01:24]} 18. Ne4 {[%clk 0:01:50]}  Bxg5 {[%clk 0:01:15]} 19. Nfxg5 {[%clk 0:01:44]}  f6 {[%clk 0:00:55]} 20. Nxh7 {[%clk 0:01:26]}  Kxh7 {[%clk 0:00:54]} 21. Nxf6+ {[%clk 0:01:25]}  Kh8 {[%clk 0:00:47]} 22. Nxe8 {[%clk 0:01:24]}  Rxe8 {[%clk 0:00:47]} 23. Qh5+ {[%clk 0:01:24]}  Kg8 {[%clk 0:00:44]} 24. Qxe8+ {[%clk 0:01:22]}  Nf8 {[%clk 0:00:43]} 25. Ra3 {[%clk 0:01:18]} 1-0


[Site "https://www.chess.com"]

[Event "Titled Tuesday Blitz November 08 Early 2022"]
[White "Vidruska, Renate"]
[Black "Garic, Radomir"]
[WhiteFideId "11601841"]
[BlackFideId "920959"]
[WhiteElo "1877"]
[BlackElo "2227"]
[Result "0-1"]
[Round "05"]
[TimeControl "180+1"]
[Date "2022.11.09"]
[WhiteClock "0:00:15"]
[BlackClock "0:00:21"]

1. e4 {[%clk 0:02:58]}  c5 {[%clk 0:02:59]} 2. Nf3 {[%clk 0:02:54]}  Nc6 {[%clk 0:02:59]} 3. d4 {[%clk 0:02:54]}  cxd4 {[%clk 0:02:59]} 4. Nxd4 {[%clk 0:02:55]}  Qc7 {[%clk 0:02:57]} 5. Nc3 {[%clk 0:02:54]}  e6 {[%clk 0:02:57]} 6. f3 {[%clk 0:02:34]}  a6 {[%clk 0:02:54]} 7. Be3 {[%clk 0:02:34]}  Nf6 {[%clk 0:02:53]} 8. Qd3 {[%clk 0:02:34]}  Ne5 {[%clk 0:02:52]} 9. Qe2 {[%clk 0:02:33]}  Bb4 {[%clk 0:02:51]} 10. Bd2 {[%clk 0:02:23]}  O-O {[%clk 0:02:49]} 11. a3 {[%clk 0:02:20]}  Bc5 {[%clk 0:02:49]} 12. Nb3 {[%clk 0:02:18]}  Ba7 {[%clk 0:02:47]} 13. O-O-O {[%clk 0:02:17]}  b5 {[%clk 0:02:47]} 14. Kb1 {[%clk 0:02:14]}  Bb7 {[%clk 0:02:46]} 15. Bf4 {[%clk 0:02:13]}  Nh5 {[%clk 0:02:42]} 16. Bc1 {[%clk 0:02:07]}  Nc4 {[%clk 0:02:37]} 17. g4 {[%clk 0:02:03]}  Nf6 {[%clk 0:02:35]} 18. g5 {[%clk 0:01:57]}  Nh5 {[%clk 0:02:33]} 19. Qd3 {[%clk 0:01:45]}  Rfd8 {[%clk 0:02:28]} 20. Nd2 {[%clk 0:01:40]}  Ne5 {[%clk 0:02:24]} 21. Qe2 {[%clk 0:01:36]}  Nf4 {[%clk 0:02:18]} 22. Qe1 {[%clk 0:01:37]}  Rac8 {[%clk 0:02:12]} 23. Nb3 {[%clk 0:01:33]}  Nfg6 {[%clk 0:01:32]} 24. f4 {[%clk 0:01:10]}  Nc4 {[%clk 0:01:17]} 25. f5 {[%clk 0:01:10]}  exf5 {[%clk 0:01:16]} 26. exf5 {[%clk 0:01:10]}  Bxh1 {[%clk 0:01:14]} 27. fxg6 {[%clk 0:01:10]}  hxg6 {[%clk 0:01:13]} 28. Bd3 {[%clk 0:00:40]}  Bb7 {[%clk 0:01:08]} 29. Ne4 {[%clk 0:00:38]}  d5 {[%clk 0:00:52]} 30. Ng3 {[%clk 0:00:32]}  Re8 {[%clk 0:00:51]} 31. Qf1 {[%clk 0:00:18]}  Ne3 {[%clk 0:00:50]} 32. Bxe3 {[%clk 0:00:18]}  Rxe3 {[%clk 0:00:50]} 33. h4 {[%clk 0:00:18]}  Rxg3 {[%clk 0:00:47]} 34. Nd2 {[%clk 0:00:15]}  Rg1 {[%clk 0:00:45]} 35. Qe2 {[%clk 0:00:15]}  Rxd1+ {[%clk 0:00:41]} 36. Qxd1 {[%clk 0:00:16]}  Qg3 {[%clk 0:00:38]} 37. Qe2 {[%clk 0:00:17]}  Qd6 {[%clk 0:00:26]} 38. Nf3 {[%clk 0:00:16]}  Qd7 {[%clk 0:00:23]} 39. Ne5 {[%clk 0:00:15]}  Re8 {[%clk 0:00:22]} 40. Qh2 {[%clk 0:00:14]}  Qd6 {[%clk 0:00:21]} 41. Ng4 {[%clk 0:00:13]}  Re1+ {[%clk 0:00:19]} 42. Ka2 {[%clk 0:00:13]}  Qxh2 {[%clk 0:00:19]} 43. Nxh2 {[%clk 0:00:14]}  d4 {[%clk 0:00:20]} 44. Ng4 {[%clk 0:00:14]}  Bd5+ {[%clk 0:00:20]} 45. b3 {[%clk 0:00:14]}  Bc5 {[%clk 0:00:20]} 46. Kb2 {[%clk 0:00:15]}  b4 {[%clk 0:00:20]} 47. axb4 {[%clk 0:00:15]}  Bxb4 {[%clk 0:00:20]} 48. c4 {[%clk 0:00:15]}  dxc3+ {[%clk 0:00:20]} 49. Kc2 {[%clk 0:00:15]}  Rg1 {[%clk 0:00:21]} 0-1


[Site "https://www.chess.com"]

[Event "Titled Tuesday Blitz November 08 Early 2022"]
[White "Vlassov, Nikolai"]
[Black "Berdychevskaya, Natasha"]
[WhiteFideId "4103360"]
[BlackFideId "4159322"]
[WhiteElo "2324"]
[BlackElo "2108"]
[Result "1/2-1/2"]
[Round "05"]
[TimeControl "180+1"]
[Date "2022.11.09"]
[WhiteClock "0:00:10"]
[BlackClock "0:00:10"]

1. e4 {[%clk 0:02:48]}  e5 {[%clk 0:02:59]} 2. Bc4 {[%clk 0:02:47]}  Nf6 {[%clk 0:02:56]} 3. d3 {[%clk 0:02:47]}  c6 {[%clk 0:02:54]} 4. Nf3 {[%clk 0:02:46]}  d5 {[%clk 0:02:54]} 5. Bb3 {[%clk 0:02:46]}  a5 {[%clk 0:02:44]} 6. Nc3 {[%clk 0:02:45]}  Bb4 {[%clk 0:02:41]} 7. a3 {[%clk 0:02:43]}  Bxc3+ {[%clk 0:02:39]} 8. bxc3 {[%clk 0:02:44]}  O-O {[%clk 0:02:29]} 9. Nxe5 {[%clk 0:02:06]}  a4 {[%clk 0:02:19]} 10. Ba2 {[%clk 0:02:05]}  dxe4 {[%clk 0:02:11]} 11. O-O {[%clk 0:02:00]}  Nbd7 {[%clk 0:02:05]} 12. Nxd7 {[%clk 0:01:51]}  Bxd7 {[%clk 0:02:01]} 13. Bg5 {[%clk 0:01:50]}  Bf5 {[%clk 0:01:49]} 14. d4 {[%clk 0:01:35]}  h6 {[%clk 0:01:42]} 15. Bh4 {[%clk 0:01:34]}  Qd6 {[%clk 0:01:40]} 16. c4 {[%clk 0:01:29]}  Rfe8 {[%clk 0:01:14]} 17. c5 {[%clk 0:01:25]}  Qf4 {[%clk 0:01:07]} 18. Bxf6 {[%clk 0:01:21]}  gxf6 {[%clk 0:01:06]} 19. Qc1 {[%clk 0:01:11]}  Qxc1 {[%clk 0:00:56]} 20. Rfxc1 {[%clk 0:01:10]}  Rad8 {[%clk 0:00:50]} 21. c3 {[%clk 0:00:44]}  e3 {[%clk 0:00:50]} 22. fxe3 {[%clk 0:00:44]}  Rxe3 {[%clk 0:00:49]} 23. Kf2 {[%clk 0:00:42]}  Rde8 {[%clk 0:00:35]} 24. Re1 {[%clk 0:00:42]}  R3e4 {[%clk 0:00:32]} 25. Rxe4 {[%clk 0:00:34]}  Bxe4 {[%clk 0:00:26]} 26. Re1 {[%clk 0:00:32]}  Kg7 {[%clk 0:00:21]} 27. Bb1 {[%clk 0:00:29]}  f5 {[%clk 0:00:21]} 28. g4 {[%clk 0:00:21]}  Rb8 {[%clk 0:00:13]} 29. Bxe4 {[%clk 0:00:16]}  fxe4 {[%clk 0:00:13]} 30. Rxe4 {[%clk 0:00:17]}  b6 {[%clk 0:00:13]} 31. cxb6 {[%clk 0:00:16]}  Rxb6 {[%clk 0:00:13]} 32. c4 {[%clk 0:00:16]}  Rb2+ {[%clk 0:00:12]} 33. Re2 {[%clk 0:00:14]}  Rb3 {[%clk 0:00:11]} 34. Re3 {[%clk 0:00:15]}  Rb2+ {[%clk 0:00:11]} 35. Kg3 {[%clk 0:00:15]}  Rd2 {[%clk 0:00:10]} 36. Re5 {[%clk 0:00:11]}  Rxd4 {[%clk 0:00:09]} 37. Rc5 {[%clk 0:00:11]}  Rd3+ {[%clk 0:00:09]} 38. Kf4 {[%clk 0:00:11]}  Rxa3 {[%clk 0:00:09]} 39. Rxc6 {[%clk 0:00:11]}  Rc3 {[%clk 0:00:09]} 40. h4 {[%clk 0:00:10]}  a3 {[%clk 0:00:09]} 41. c5 {[%clk 0:00:09]}  a2 {[%clk 0:00:09]} 42. Ra6 {[%clk 0:00:09]}  Rc4+ {[%clk 0:00:09]} 43. Kg3 {[%clk 0:00:09]}  Rc3+ {[%clk 0:00:09]} 44. Kf4 {[%clk 0:00:09]}  Rc4+ {[%clk 0:00:10]} 45. Kg3 {[%clk 0:00:10]}  Rc3+ {[%clk 0:00:10]} 46. Kf4 {[%clk 0:00:10]} 1/2-1/2


[Site "https://www.chess.com"]

[Event "Titled Tuesday Blitz November 08 Early 2022"]
[White "Wieczorek, Oskar"]
[Black "Xiong, Jeffery"]
[WhiteFideId "1133950"]
[BlackFideId "2047640"]
[WhiteElo "2404"]
[BlackElo "2725"]
[Result "0-1"]
[Round "05"]
[TimeControl "180+1"]
[Date "2022.11.08"]
[WhiteClock "0:00:01"]
[BlackClock "0:00:35"]

1. e4 {[%clk 0:03:00]}  d6 {[%clk 0:02:56]} 2. d4 {[%clk 0:03:01]}  Nf6 {[%clk 0:02:57]} 3. f3 {[%clk 0:03:00]}  Nbd7 {[%clk 0:02:56]} 4. c4 {[%clk 0:03:00]}  c5 {[%clk 0:02:52]} 5. Ne2 {[%clk 0:02:58]}  g6 {[%clk 0:02:51]} 6. Nbc3 {[%clk 0:02:58]}  Bg7 {[%clk 0:02:51]} 7. Be3 {[%clk 0:02:58]}  O-O {[%clk 0:02:51]} 8. Qd2 {[%clk 0:02:59]}  a6 {[%clk 0:02:50]} 9. a4 {[%clk 0:02:57]}  cxd4 {[%clk 0:02:49]} 10. Nxd4 {[%clk 0:02:56]}  Nc5 {[%clk 0:02:50]} 11. Rd1 {[%clk 0:02:34]}  Bd7 {[%clk 0:02:48]} 12. Qc2 {[%clk 0:02:22]}  Qa5 {[%clk 0:02:45]} 13. Nb3 {[%clk 0:01:57]}  Nxb3 {[%clk 0:02:09]} 14. Qxb3 {[%clk 0:01:57]}  Bc6 {[%clk 0:02:09]} 15. Qb6 {[%clk 0:01:34]}  Qxb6 {[%clk 0:01:57]} 16. Bxb6 {[%clk 0:01:34]}  Nd7 {[%clk 0:01:58]} 17. Bd4 {[%clk 0:01:32]}  Bxd4 {[%clk 0:01:59]} 18. Rxd4 {[%clk 0:01:33]}  a5 {[%clk 0:01:59]} 19. Bd3 {[%clk 0:01:24]}  Nb6 {[%clk 0:01:45]} 20. Bc2 {[%clk 0:01:18]}  Rfd8 {[%clk 0:01:42]} 21. b3 {[%clk 0:01:15]}  Nd7 {[%clk 0:01:42]} 22. Kf2 {[%clk 0:01:15]}  Nc5 {[%clk 0:01:42]} 23. Re1 {[%clk 0:01:12]}  Kg7 {[%clk 0:01:42]} 24. Ke3 {[%clk 0:01:03]}  g5 {[%clk 0:01:40]} 25. Red1 {[%clk 0:01:02]}  h5 {[%clk 0:01:37]} 26. g3 {[%clk 0:00:49]}  Rh8 {[%clk 0:01:22]} 27. h4 {[%clk 0:00:44]}  gxh4 {[%clk 0:01:16]} 28. gxh4 {[%clk 0:00:45]}  Rhg8 {[%clk 0:01:17]} 29. Nd5 {[%clk 0:00:41]}  Kf8 {[%clk 0:01:08]} 30. R4d2 {[%clk 0:00:27]}  Ra6 {[%clk 0:01:03]} 31. Nf4 {[%clk 0:00:27]}  Rb6 {[%clk 0:01:02]} 32. Nxh5 {[%clk 0:00:05]}  Nxb3 {[%clk 0:01:02]} 33. Bxb3 {[%clk 0:00:06]}  Rxb3+ {[%clk 0:01:02]} 34. Rd3 {[%clk 0:00:06]}  Rxd3+ {[%clk 0:00:53]} 35. Rxd3 {[%clk 0:00:05]}  Rh8 {[%clk 0:00:54]} 36. Nf4 {[%clk 0:00:05]}  Rxh4 {[%clk 0:00:55]} 37. Rc3 {[%clk 0:00:02]}  Bxa4 {[%clk 0:00:47]} 38. Ra3 {[%clk 0:00:02]}  Bc6 {[%clk 0:00:44]} 39. Rxa5 {[%clk 0:00:03]}  Rh1 {[%clk 0:00:44]} 40. Ra8+ {[%clk 0:00:03]}  Kg7 {[%clk 0:00:44]} 41. Nd3 {[%clk 0:00:03]}  Rb1 {[%clk 0:00:37]} 42. Ra2 {[%clk 0:00:03]}  Rb3 {[%clk 0:00:37]} 43. Ke2 {[%clk 0:00:02]}  Rc3 {[%clk 0:00:36]} 44. c5 {[%clk 0:00:01]}  Bb5 {[%clk 0:00:35]} 0-1


[Site "https://www.chess.com"]

[Event "Titled Tuesday Blitz November 08 Early 2022"]
[White "Wirig, Anthony"]
[Black "Aung Thant Zin"]
[WhiteFideId "615013"]
[BlackFideId "13000063"]
[WhiteElo "2487"]
[BlackElo "2278"]
[Result "1-0"]
[Round "05"]
[TimeControl "180+1"]
[Date "2022.11.09"]
[WhiteClock "0:00:40"]
[BlackClock "0:00:03"]

1. d4 {[%clk 0:03:00]}  Nf6 {[%clk 0:02:45]} 2. Bg5 {[%clk 0:03:01]}  e6 {[%clk 0:02:44]} 3. e4 {[%clk 0:03:00]}  h6 {[%clk 0:02:44]} 4. Bxf6 {[%clk 0:03:00]}  Qxf6 {[%clk 0:02:44]} 5. c3 {[%clk 0:03:01]}  d5 {[%clk 0:02:43]} 6. Nd2 {[%clk 0:02:59]}  c6 {[%clk 0:02:33]} 7. Ngf3 {[%clk 0:02:58]}  Nd7 {[%clk 0:02:32]} 8. Bd3 {[%clk 0:02:54]}  Qd8 {[%clk 0:02:32]} 9. O-O {[%clk 0:02:54]}  Be7 {[%clk 0:02:32]} 10. Re1 {[%clk 0:02:52]}  O-O {[%clk 0:02:32]} 11. Nf1 {[%clk 0:02:52]}  Re8 {[%clk 0:02:32]} 12. Ng3 {[%clk 0:02:52]}  Nf8 {[%clk 0:02:31]} 13. e5 {[%clk 0:02:49]}  c5 {[%clk 0:02:08]} 14. dxc5 {[%clk 0:02:49]}  Bxc5 {[%clk 0:02:07]} 15. Nd4 {[%clk 0:02:49]}  Bxd4 {[%clk 0:02:06]} 16. cxd4 {[%clk 0:02:49]}  Bd7 {[%clk 0:02:07]} 17. Qg4 {[%clk 0:02:42]}  Qg5 {[%clk 0:02:02]} 18. Qxg5 {[%clk 0:02:17]}  hxg5 {[%clk 0:02:02]} 19. Rec1 {[%clk 0:02:18]}  Rec8 {[%clk 0:02:00]} 20. Kf1 {[%clk 0:02:16]}  f6 {[%clk 0:01:53]} 21. Ke2 {[%clk 0:02:08]}  Kf7 {[%clk 0:01:52]} 22. Ke3 {[%clk 0:02:04]}  f5 {[%clk 0:01:37]} 23. Ne2 {[%clk 0:01:58]}  Ke7 {[%clk 0:01:26]} 24. f4 {[%clk 0:01:54]}  g4 {[%clk 0:01:24]} 25. h3 {[%clk 0:01:48]}  gxh3 {[%clk 0:01:17]} 26. g3 {[%clk 0:01:47]}  Be8 {[%clk 0:00:37]} 27. Ng1 {[%clk 0:01:20]}  h2 {[%clk 0:00:32]} 28. Nf3 {[%clk 0:01:19]}  Rxc1 {[%clk 0:00:25]} 29. Rxc1 {[%clk 0:01:16]}  Rc8 {[%clk 0:00:24]} 30. Rh1 {[%clk 0:01:01]}  Bh5 {[%clk 0:00:23]} 31. Nxh2 {[%clk 0:00:57]}  g6 {[%clk 0:00:19]} 32. Re1 {[%clk 0:00:53]}  a6 {[%clk 0:00:17]} 33. Nf1 {[%clk 0:00:48]}  Nd7 {[%clk 0:00:15]} 34. Kd2 {[%clk 0:00:45]}  Bg4 {[%clk 0:00:14]} 35. Ne3 {[%clk 0:00:45]}  Bh5 {[%clk 0:00:12]} 36. Rg1 {[%clk 0:00:42]}  Nb6 {[%clk 0:00:09]} 37. b3 {[%clk 0:00:42]}  Rh8 {[%clk 0:00:05]} 38. Rc1 {[%clk 0:00:41]}  Kd7 {[%clk 0:00:03]} 39. a4 {[%clk 0:00:40]} 1-0


[Site "https://www.chess.com"]

[Event "Titled Tuesday Blitz November 08 Early 2022"]
[White "Zainullina, Nataliya"]
[Black "Kaplan, Avi Harrison"]
[WhiteFideId "4145488"]
[BlackFideId "30934559"]
[WhiteElo "2091"]
[BlackElo "1983"]
[Result "0-1"]
[Round "05"]
[TimeControl "180+1"]
[Date "2022.11.09"]
[WhiteClock "0:00:02"]
[BlackClock "0:00:18"]

1. Nf3 {[%clk 0:03:00]}  c5 {[%clk 0:02:56]} 2. c4 {[%clk 0:03:00]}  Nc6 {[%clk 0:02:47]} 3. Nc3 {[%clk 0:03:00]}  g6 {[%clk 0:02:40]} 4. e3 {[%clk 0:02:58]}  Bg7 {[%clk 0:02:38]} 5. d4 {[%clk 0:02:58]}  cxd4 {[%clk 0:02:36]} 6. exd4 {[%clk 0:02:58]}  Nf6 {[%clk 0:02:35]} 7. d5 {[%clk 0:02:57]}  Nb8 {[%clk 0:02:35]} 8. Bf4 {[%clk 0:02:52]}  d6 {[%clk 0:02:35]} 9. Qd2 {[%clk 0:02:52]}  O-O {[%clk 0:02:34]} 10. Bh6 {[%clk 0:02:52]}  e6 {[%clk 0:02:30]} 11. Bxg7 {[%clk 0:02:50]}  Kxg7 {[%clk 0:02:30]} 12. dxe6 {[%clk 0:02:39]}  fxe6 {[%clk 0:01:49]} 13. Be2 {[%clk 0:02:38]}  d5 {[%clk 0:01:48]} 14. O-O {[%clk 0:02:24]}  Nc6 {[%clk 0:01:44]} 15. cxd5 {[%clk 0:02:18]}  exd5 {[%clk 0:01:41]} 16. Rfd1 {[%clk 0:02:13]}  Be6 {[%clk 0:01:41]} 17. Nd4 {[%clk 0:02:13]}  Bg8 {[%clk 0:01:39]} 18. Bf3 {[%clk 0:02:13]}  Qd7 {[%clk 0:01:33]} 19. a4 {[%clk 0:01:59]}  Rac8 {[%clk 0:01:28]} 20. a5 {[%clk 0:01:58]}  Ne5 {[%clk 0:01:23]} 21. a6 {[%clk 0:01:48]}  b6 {[%clk 0:01:21]} 22. Re1 {[%clk 0:01:12]}  Nc4 {[%clk 0:01:13]} 23. Qc2 {[%clk 0:01:04]}  Rfe8 {[%clk 0:01:13]} 24. Rxe8 {[%clk 0:00:35]}  Rxe8 {[%clk 0:01:14]} 25. b3 {[%clk 0:00:18]}  Ne5 {[%clk 0:01:12]} 26. Qd2 {[%clk 0:00:11]}  Rc8 {[%clk 0:01:07]} 27. Ncb5 {[%clk 0:00:10]}  Nxf3+ {[%clk 0:01:06]} 28. gxf3 {[%clk 0:00:10]}  Rc5 {[%clk 0:01:03]} 29. Nc3 {[%clk 0:00:08]}  Qc7 {[%clk 0:01:02]} 30. Nce2 {[%clk 0:00:08]}  Bf7 {[%clk 0:01:00]} 31. Nf4 {[%clk 0:00:07]}  Qe5 {[%clk 0:00:56]} 32. Qe3 {[%clk 0:00:06]}  Qxe3 {[%clk 0:00:30]} 33. fxe3 {[%clk 0:00:07]}  Rc3 {[%clk 0:00:31]} 34. Kf2 {[%clk 0:00:06]}  Nd7 {[%clk 0:00:28]} 35. Nfe2 {[%clk 0:00:07]}  Rd3 {[%clk 0:00:27]} 36. Rc1 {[%clk 0:00:07]}  Nc5 {[%clk 0:00:27]} 37. b4 {[%clk 0:00:07]}  Nxa6 {[%clk 0:00:25]} 38. b5 {[%clk 0:00:06]}  Nc5 {[%clk 0:00:24]} 39. Nc6 {[%clk 0:00:06]}  Rb3 {[%clk 0:00:23]} 40. Nxa7 {[%clk 0:00:06]}  Nd3+ {[%clk 0:00:22]} 41. Kg2 {[%clk 0:00:04]}  Nxc1 {[%clk 0:00:23]} 42. Nd4 {[%clk 0:00:04]}  Rxe3 {[%clk 0:00:21]} 43. Kf2 {[%clk 0:00:03]}  Ra3 {[%clk 0:00:21]} 44. Nac6 {[%clk 0:00:03]}  Nd3+ {[%clk 0:00:20]} 45. Ke2 {[%clk 0:00:03]}  Nc5 {[%clk 0:00:20]} 46. Nd8 {[%clk 0:00:02]}  Ra2+ {[%clk 0:00:19]} 47. Ke3 {[%clk 0:00:01]}  Rxh2 {[%clk 0:00:20]} 48. Kf4 {[%clk 0:00:02]}  h6 {[%clk 0:00:19]} 49. Kg3 {[%clk 0:00:02]}  Rb2 {[%clk 0:00:18]} 50. N8c6 {[%clk 0:00:02]}  h5 {[%clk 0:00:18]} 0-1


[Site "https://www.chess.com"]

[Event "Titled Tuesday Blitz November 08 Early 2022"]
[White "Zaksaite, Salomeja"]
[Black "Zaragatski, Ilja"]
[WhiteFideId "12801496"]
[BlackFideId "4655192"]
[WhiteElo "2079"]
[BlackElo "2460"]
[Result "0-1"]
[Round "05"]
[TimeControl "180+1"]
[Date "2022.11.09"]
[WhiteClock "0:00:01"]
[BlackClock "0:00:01"]

1. e4 {[%clk 0:03:00]}  d5 {[%clk 0:02:56]} 2. exd5 {[%clk 0:03:00]}  Qxd5 {[%clk 0:02:57]} 3. Nc3 {[%clk 0:03:00]}  Qd8 {[%clk 0:02:57]} 4. Nf3 {[%clk 0:02:58]}  Bf5 {[%clk 0:02:54]} 5. Bc4 {[%clk 0:02:54]}  e6 {[%clk 0:02:54]} 6. O-O {[%clk 0:02:48]}  Nf6 {[%clk 0:02:53]} 7. d4 {[%clk 0:02:46]}  c6 {[%clk 0:02:53]} 8. h3 {[%clk 0:02:44]}  h6 {[%clk 0:02:52]} 9. Re1 {[%clk 0:02:35]}  Be7 {[%clk 0:02:51]} 10. Be3 {[%clk 0:02:14]}  O-O {[%clk 0:02:49]} 11. Ne5 {[%clk 0:02:13]}  Nd5 {[%clk 0:02:36]} 12. Bd2 {[%clk 0:02:10]}  Nd7 {[%clk 0:02:30]} 13. Bb3 {[%clk 0:01:56]}  Nxe5 {[%clk 0:02:24]} 14. dxe5 {[%clk 0:01:53]}  Qb6 {[%clk 0:02:11]} 15. Qf3 {[%clk 0:01:46]}  Rad8 {[%clk 0:02:02]} 16. Nxd5 {[%clk 0:01:34]}  cxd5 {[%clk 0:02:01]} 17. c3 {[%clk 0:01:34]}  Bg6 {[%clk 0:01:40]} 18. Be3 {[%clk 0:01:18]}  Bc5 {[%clk 0:01:39]} 19. Bxc5 {[%clk 0:01:18]}  Qxc5 {[%clk 0:01:40]} 20. Rad1 {[%clk 0:01:18]}  b5 {[%clk 0:01:37]} 21. Rd4 {[%clk 0:01:18]}  a5 {[%clk 0:01:36]} 22. a3 {[%clk 0:01:13]}  Rb8 {[%clk 0:01:34]} 23. Qe3 {[%clk 0:00:54]}  Rfc8 {[%clk 0:01:26]} 24. Ra1 {[%clk 0:00:27]}  Bf5 {[%clk 0:01:01]} 25. h4 {[%clk 0:00:25]}  Kh7 {[%clk 0:00:47]} 26. Re1 {[%clk 0:00:24]}  b4 {[%clk 0:00:46]} 27. cxb4 {[%clk 0:00:23]}  axb4 {[%clk 0:00:47]} 28. a4 {[%clk 0:00:23]}  Kg8 {[%clk 0:00:42]} 29. h5 {[%clk 0:00:22]}  Qa5 {[%clk 0:00:29]} 30. Qf3 {[%clk 0:00:18]}  Be4 {[%clk 0:00:23]} 31. Qg3 {[%clk 0:00:18]}  Rc7 {[%clk 0:00:22]} 32. f3 {[%clk 0:00:17]}  Bf5 {[%clk 0:00:21]} 33. Qf4 {[%clk 0:00:12]}  Bc2 {[%clk 0:00:18]} 34. Bxc2 {[%clk 0:00:09]}  Rxc2 {[%clk 0:00:17]} 35. b3 {[%clk 0:00:10]}  Rb2 {[%clk 0:00:14]} 36. Re3 {[%clk 0:00:10]}  Rc8 {[%clk 0:00:14]} 37. Rxb4 {[%clk 0:00:09]}  Qa7 {[%clk 0:00:09]} 38. Qd4 {[%clk 0:00:07]}  Rc1+ {[%clk 0:00:04]} 39. Kh2 {[%clk 0:00:06]}  Qc7 {[%clk 0:00:04]} 40. Qg4 {[%clk 0:00:03]}  Rcc2 {[%clk 0:00:03]} 41. Kh3 {[%clk 0:00:01]}  d4 {[%clk 0:00:01]} 0-1


[Site "https://www.chess.com"]